fUSD/lending_fUSD_20251113
["ID","MTS","AMOUNT","RATE_DAILY","PERIOD"]
[393873898,1763059761466,371.46,0.00016312,2]
[393873995,1763059795115,177.61,0.00016322,2]
[393874027,1763059809931,1425.66,0.00016438,2]
[393874062,1763059830696,732.03295094,0.00016981,2]
[393874098,1763059837890,-338.57656952,0.00017,2]
[393874099,1763059837899,-191.68637885,0.00017001,2]
[393874100,1763059837909,-655.21475563,0.00017003,2]
[393874101,1763059837922,-254.59524437,0.00017003,2]
[393874102,1763059837931,-238.39725563,0.00017003,2]
[393874103,1763059837944,-11.60274437,0.00017003,2]
[393874104,1763059837954,-195.0,0.00017003,2]
[393874105,1763059837963,-195.0,0.00017004,2]
[393874106,1763059837974,-91.53525563,0.00017031,2]
[393874107,1763059837986,-58.46474437,0.00017031,2]
[393874108,1763059837995,-195.0,0.00017031,2]
[393874109,1763059838004,-1200.0,0.00017071,2]
[393874110,1763059838014,-227.20261176,0.00017071,2]
[393874111,1763059838026,-72.79738824,0.00017071,2]
[393874112,1763059838035,-1200.0,0.00017071,2]
[393874113,1763059838046,-151.0,0.00017072,2]
[393874114,1763059838059,-151.0,0.00017072,2]
[393874116,1763059838071,-151.0,0.00017072,2]
[393874117,1763059838081,-151.0,0.00017072,2]
[393874118,1763059838092,-151.0,0.00017072,2]
[393874119,1763059838103,-41.95129276,0.00017072,2]
[393874120,1763059838131,-109.04870724,0.00017072,2]
[393874121,1763059838141,-151.0,0.00017072,2]
[393874122,1763059838152,-263.62259856,0.00017072,2]
[393874123,1763059838162,-288.23541076,0.00017072,2]
[393874124,1763059838171,-500.86745626,0.00017073,2]
[393874125,1763059838181,-185.72582718,0.00017073,2]
[393874126,1763059838192,-457.6414461,0.00017073,2]
[393874127,1763059838202,-164.54570629,0.00017073,2]
[393874128,1763059838212,-273.01404432,0.00017073,2]
[393874129,1763059838223,-226.98595568,0.00017073,2]
[393874131,1763059838233,-503.00814931,0.00017073,2]
[393874133,1763059838242,-486.25749501,0.00017073,2]
[393874136,1763059838257,-13.74250499,0.00017073,2]
[393874138,1763059838267,-500.0,0.00017073,2]
[393874140,1763059838276,-151.0,0.00017079,2]
[393874142,1763059838286,-152.40131521,0.0001708,2]
[393874155,1763059838390,-723.26077965,0.0001708,2]
[393874158,1763059838401,-211.03457717,0.00017081,2]
[393874161,1763059838411,-247.34363529,0.00017081,2]
[393874164,1763059838421,-96.67479187,0.00017081,2]
[393874168,1763059838432,-450.61478625,0.00017081,2]
[393874171,1763059838442,-547.28957812,0.00017081,2]
[393874174,1763059838451,-547.28957812,0.00017081,2]
[393874176,1763059838460,-547.28957812,0.00017081,2]
[393874179,1763059838470,-547.28957812,0.00017081,2]
[393874181,1763059838479,-547.28957812,0.00017081,2]
[393874183,1763059838489,-547.28957812,0.00017081,2]
[393874185,1763059838500,-547.28957812,0.00017081,2]
[393874187,1763059838510,-547.28957812,0.00017081,2]
[393874190,1763059838520,-547.28957812,0.00017081,2]
[393874192,1763059838530,-547.28957812,0.00017081,2]
[393874195,1763059838540,-547.28957812,0.00017081,2]
[393874197,1763059838550,-239.05194131,0.00017081,2]
[393874199,1763059838566,-308.23763681,0.00017081,2]
[393874201,1763059838576,-481.01508505,0.00017081,2]
[393874206,1763059838618,-66.27449307,0.00017081,2]
[393874208,1763059838629,-547.28957812,0.00017081,2]
[393874210,1763059838639,-547.28957812,0.00017081,2]
[393874212,1763059838649,-547.28957812,0.00017081,2]
[393874214,1763059838659,-547.28957812,0.00017081,2]
[393874216,1763059838669,-547.28957812,0.00017081,2]
[393874218,1763059838678,-547.28957812,0.00017081,2]
[393874220,1763059838687,-547.28957812,0.00017081,2]
[393874222,1763059838697,-547.28957812,0.00017081,2]
[393874224,1763059838707,-511.00028197,0.00017081,2]
[393874226,1763059838718,-36.28929615,0.00017081,2]
[393874228,1763059838727,-547.28957812,0.00017081,2]
[393874230,1763059838736,-547.28957812,0.00017081,2]
[393874232,1763059838746,-547.28957812,0.00017081,2]
[393874234,1763059838755,-436.37596949,0.00017081,2]
[393874237,1763059838768,-110.91360863,0.00017081,2]
[393874239,1763059838778,-547.28957812,0.00017081,2]
[393874241,1763059838787,-547.28957812,0.00017081,2]
[393874243,1763059838796,-547.28957812,0.00017081,2]
[393874245,1763059838806,-226.95541701,0.00017081,2]
[393874247,1763059838821,-320.33416111,0.00017081,2]
[393874249,1763059838831,-547.28957812,0.00017081,2]
[393874251,1763059838840,-547.28957812,0.00017081,2]
[393874253,1763059838850,-547.28957812,0.00017081,2]
[393874255,1763059838861,-177.19710471,0.00017081,2]
[393874259,1763059838889,-370.09247341,0.00017081,2]
[393874261,1763059838899,-547.28957812,0.00017081,2]
[393874263,1763059838911,-547.28957812,0.00017081,2]
[393874265,1763059838921,-547.28957812,0.00017081,2]
[393874267,1763059838932,-547.28957812,0.00017081,2]
[393874269,1763059838942,-547.28957812,0.00017081,2]
[393874271,1763059838952,-271.16013599,0.00017081,2]
[393874311,1763059839339,-276.12944213,0.00017081,2]
[393874313,1763059839348,-547.28957812,0.00017081,2]
[393874315,1763059839358,-547.28957812,0.00017081,2]
[393874317,1763059839368,-547.28957812,0.00017081,2]
[393874319,1763059839378,-547.28957812,0.00017081,2]
[393874321,1763059839387,-547.28957812,0.00017081,2]
[393874323,1763059839396,-547.28957812,0.00017081,2]
[393874325,1763059839406,-547.28957812,0.00017081,2]
[393874327,1763059839417,-547.28957812,0.00017081,2]
[393874329,1763059839427,-547.28957812,0.00017081,2]
[393874331,1763059839436,-547.28957812,0.00017081,2]
[393874333,1763059839445,-547.28957812,0.00017081,2]
[393874334,1763059839454,-547.28957812,0.00017081,2]
[393874336,1763059839464,-547.28957812,0.00017081,2]
[393874337,1763059839473,-547.28957812,0.00017081,2]
[393874339,1763059839483,-547.28957812,0.00017081,2]
[393874341,1763059839492,-547.28957812,0.00017081,2]
[393874343,1763059839501,-547.28957812,0.00017081,2]
[393874345,1763059839510,-547.28957812,0.00017081,2]
[393874347,1763059839520,-547.28957812,0.00017081,2]
[393874349,1763059839530,-547.28957812,0.00017081,2]
[393874351,1763059839539,-547.28957811,0.00017081,2]
[393874353,1763059839549,-547.28957811,0.00017081,2]
[393874355,1763059839558,-547.28957811,0.00017081,2]
[393874357,1763059839568,-547.28957811,0.00017081,2]
[393874359,1763059839577,-547.28957811,0.00017081,2]
[393874361,1763059839587,-547.28957811,0.00017081,2]
[393874363,1763059839596,-547.28957811,0.00017081,2]
[393874364,1763059839605,-547.28957811,0.00017081,2]
[393874365,1763059839617,-547.28957811,0.00017081,2]
[393874366,1763059839627,-547.28957811,0.00017081,2]
[393874367,1763059839637,-547.28957811,0.00017081,2]
[393874368,1763059839646,-547.28957811,0.00017081,2]
[393874369,1763059839655,-547.28957811,0.00017081,2]
[393874370,1763059839665,-547.28957811,0.00017081,2]
[393874371,1763059839674,-547.28957811,0.00017081,2]
[393874372,1763059839684,-547.28957811,0.00017081,2]
[393874373,1763059839694,-547.28957811,0.00017081,2]
[393874374,1763059839703,-547.28957811,0.00017081,2]
[393874375,1763059839712,-547.28957811,0.00017081,2]
[393874376,1763059839722,-547.28957811,0.00017081,2]
[393874377,1763059839731,-547.28957811,0.00017081,2]
[393874378,1763059839741,-547.28957811,0.00017081,2]
[393874379,1763059839750,-547.28957811,0.00017081,2]
[393874380,1763059839759,-547.28957811,0.00017081,2]
[393874381,1763059839768,-547.28957811,0.00017081,2]
[393874382,1763059839777,-547.28957811,0.00017081,2]
[393874383,1763059839786,-547.28957811,0.00017081,2]
[393874385,1763059839796,-500.0,0.00017081,2]
[393874387,1763059839805,-190.4931743,0.00017081,2]
[393874388,1763059839814,-163.67783596,0.00017081,2]
[393874389,1763059839823,-364.99745327,0.00017081,2]
[393874390,1763059839832,-500.0,0.00017081,2]
[393874391,1763059839841,-177.54630722,0.00017081,2]
[393874392,1763059839850,-500.0,0.00017081,2]
[393874393,1763059839859,-500.0,0.00017081,2]
[393874394,1763059839871,-42420.85561578,0.00017082,2]
[393874395,1763059839906,-295.00000004,0.00017082,2]
[393874409,1763059845070,-559.60999608,0.00017082,2]
[393874412,1763059845082,-466.51829991,0.00017082,2]
[393874418,1763059845131,-394.95440656,0.00017082,2]
[393874420,1763059845142,-257.56244329,0.00017082,2]
[393874422,1763059845153,-991.74013666,0.00017082,2]
[393874424,1763059845165,-348.82372796,0.00017082,2]
[393874427,1763059845176,-1609.35775,0.00017082,2]
[393874431,1763059845199,-4942.4375,0.00017082,2]
[393874435,1763059845226,-8234.21767651,0.00017082,2]
[393874437,1763059845237,-1695.4,0.00017082,2]
[393874439,1763059845247,-959.37255751,0.00017082,2]
[393874441,1763059845258,-15307.73849599,0.00017082,2]
[393874444,1763059845277,-500.0,0.00017082,2]
[393874446,1763059845287,-856.33830401,0.00017082,2]
[393874449,1763059845299,-1138.82115271,0.00017082,2]
[393874451,1763059845311,-1615.74810614,0.00017082,2]
[393874453,1763059845324,-2243.95,0.00017082,2]
[393874460,1763059845361,-9886.4334,0.00017082,2]
[393874464,1763059845373,-693.7537393,0.00017082,2]
[393874470,1763059845384,-375.212,0.00017082,2]
[393874476,1763059845396,-18026.54692131,0.00017082,2]
[393874498,1763059845474,-1825.84649464,0.00017082,2]
[393874503,1763059845485,-801.04957216,0.00017082,2]
[393874505,1763059845498,-11438.87409698,0.00017082,2]
[393874507,1763059845510,-2365.08758627,0.00017082,2]
[393874508,1763059845521,-1350.0,0.00017082,2]
[393874509,1763059845555,-9944.99656278,0.00017082,2]
[393874510,1763059845567,-471.44412181,0.00017082,2]
[393874511,1763059845578,-2366.88713661,0.00017082,2]
[393874512,1763059845590,-1449.48968449,0.00017082,2]
[393874513,1763059845600,-17260.5266555,0.00017082,2]
[393874514,1763059845609,-12283.6854773,0.00017082,2]
[393874515,1763059845618,-839.4715062,0.00017082,2]
[393874516,1763059845627,-23816.4280026,0.00017082,2]
[393874517,1763059845636,-2640.8252788,0.00017082,2]
[393874518,1763059845645,-1323.8567032,0.00017082,2]
[393874519,1763059845654,-97199.8560082,0.00017082,2]
[393874520,1763059845664,-17598.82474861,0.00017084,2]
[393874521,1763059845673,-150.0,0.00017169,2]
[393874522,1763059845683,-17598.82474861,0.00017186,2]
[393874523,1763059845692,-166.66,0.00017193,2]
[393874524,1763059845701,-1000.0,0.00017224,2]
[393874525,1763059845711,-17598.82474861,0.00017288,2]
[393874526,1763059845720,-150.0,0.00017308,2]
[393874527,1763059845729,-156.34,0.00017324,2]
[393874528,1763059845739,-151.0,0.00017364,2]
[393874529,1763059845748,-151.0,0.0001737,2]
[393874530,1763059845759,-151.0,0.00017372,2]
[393874531,1763059845768,-151.0,0.00017383,2]
[393874532,1763059845778,-17598.82474861,0.0001739,2]
[393874533,1763059845787,-300.0,0.000174,6]
[393874534,1763059845796,-900.0,0.000174,6]
[393874535,1763059845806,-150.0,0.00017446,2]
[393874536,1763059845818,-8112.4912718,0.00017492,2]
[393874537,1763059845838,-6461.73868,0.00017492,2]
[393874538,1763059845849,-1097.29265433,0.00017492,2]
[393874539,1763059845861,-484.36556644,0.00017492,2]
[393874542,1763059845873,-1442.93657604,0.00017492,2]
[393874544,1763059845883,-525.70380934,0.000175,6]
[393874545,1763059845894,-74.29619066,0.000175,6]
[393874546,1763059845903,-1409.4463153,0.000175,6]
[393874547,1763059845916,-290.33096439,0.000175,6]
[393874548,1763059845927,-100.22272031,0.000175,6]
[393874550,1763059845936,-166.66,0.00017527,2]
[393874551,1763059845946,-150.0,0.00017585,2]
[393874552,1763059845955,-17598.82474861,0.00017594,2]
[393874553,1763059845964,-900.0,0.000176,6]
[393874554,1763059845974,-2700.0,0.000176,6]
[393874555,1763059845984,-500.0,0.00017621,2]
[393874556,1763059845993,-593.30755412,0.00017621,2]
[393874557,1763059846003,-1000.0,0.00017621,2]
[393874558,1763059846013,-15850.98497696,0.00017696,2]
[393874568,1763059846519,-345.7829875,0.00017696,2]
[393874569,1763059846530,-1402.05678415,0.00017696,2]
[393874570,1763059846539,-151.0,0.00017696,2]
[393874571,1763059846548,-197.69990635,0.00017696,2]
[393874576,1763059846603,-189.87793165,0.00017696,2]
[393874578,1763059846613,-387.577838,0.00017696,2]
[393874580,1763059846624,-387.577838,0.00017696,2]
[393874582,1763059846634,-387.577838,0.00017696,2]
[393874584,1763059846643,-256.0,0.00017698,2]
[393874586,1763059846651,-1200.0,0.000177,6]
[393874588,1763059846661,-3600.0,0.000177,6]
[393874590,1763059846670,-150.0,0.00017723,2]
[393874592,1763059846679,-500.0,0.00017726,2]
[393874594,1763059846688,-150.0,0.00017779,2]
[393874596,1763059846697,-2203.7756,0.00017781,2]
[393874598,1763059846706,-151.0,0.00017795,2]
[393874600,1763059846715,-17598.82474861,0.00017798,2]
[393874602,1763059846725,-896.5599,0.000178,2]
[393874604,1763059846734,-2017.68383062,0.000178,2]
[393874606,1763059846743,-1600.0,0.000178,6]
[393874608,1763059846752,-4500.0,0.000178,6]
[393874610,1763059846761,-2017.68383057,0.00017811,2]
[393874612,1763059846771,-425.86,0.00017821,2]
[393874614,1763059846779,-2017.68383057,0.00017822,2]
[393874616,1763059846788,-2017.68383057,0.00017833,2]
[393874618,1763059846797,-2017.68383057,0.00017844,2]
[393874620,1763059846807,-2017.68383057,0.00017856,2]
[393874622,1763059846815,-150.0,0.00017862,2]
[393874624,1763059846825,-2017.68383057,0.00017867,2]
[393874626,1763059846834,-500.0,0.00017872,2]
[393874628,1763059846843,-2017.68383057,0.00017878,2]
[393874631,1763059846852,-2017.68383057,0.00017889,2]
[393874633,1763059846861,-502.78348588,0.00017899,2]
[393874635,1763059846871,-421.19668754,0.00017899,2]
[393874637,1763059846881,-421.19668753,0.000179,2]
[393874639,1763059846891,-1617.02410292,0.000179,2]
[393874641,1763059846900,-169.2044629,0.000179,2]
[393874643,1763059846909,-300.0,0.000179,6]
[393874645,1763059846918,-982.00634283,0.000179,2]
[393874647,1763059846928,-2017.68383057,0.000179,2]
[393874649,1763059846938,-402.11141104,0.000179,3]
[393874651,1763059846948,-17598.82474861,0.000179,2]
[393874653,1763059846957,-247.80007175,0.000179,2]
[393874655,1763059846966,-900.0,0.000179,6]
[393874657,1763059846976,-2601.6513995,0.000179,2]
[393874659,1763059846985,-650.07164609,0.000179,2]
[393874661,1763059846994,-228.64451842,0.000179,2]
[393874663,1763059847003,-344.1493563,0.000179,2]
[393874665,1763059847013,-421.19668753,0.000179,2]
[393874667,1763059847021,-460.0,0.00017973,2]
[393874669,1763059847030,-10553.89183951,0.00017973,2]
[393874671,1763059847043,-6819.10816049,0.00017973,2]
[393874674,1763059847058,-500.67827757,0.00017973,2]
[393874676,1763059847067,-500.0,0.00017973,2]
[393874678,1763059847076,-500.0,0.00017973,2]
[393874680,1763059847086,-500.0,0.00017973,2]
[393874682,1763059847095,-500.0,0.00017973,2]
[393874684,1763059847105,-606.98844194,0.00017973,2]
[393874686,1763059847114,-200.38550351,0.00017973,2]
[393874692,1763059847251,-506.24524947,0.00017973,2]
[393874694,1763059847261,-500.0,0.00017973,2]
[393874696,1763059847270,-497.27307079,0.00017973,2]
[393874698,1763059847279,-532.72594186,0.00017973,2]
[393874700,1763059847288,-531.85620126,0.00017973,2]
[393874702,1763059847297,-500.0,0.00017973,2]
[393874704,1763059847306,-455.58377378,0.00017973,2]
[393874707,1763059847317,-44.41622622,0.00017973,2]
[393874709,1763059847329,-420.52377378,0.00017973,2]
[393874711,1763059847340,-82.83648547,0.00017973,2]
[393874713,1763059847350,-607.54870183,0.00017973,2]
[393874715,1763059847359,-346.19916706,0.00017973,2]
[393874723,1763059847429,-153.80083294,0.00017973,2]
[393874725,1763059847438,-500.0,0.00017973,2]
[393874727,1763059847447,-362.29547707,0.00017973,2]
[393874839,1763059848496,-137.70452293,0.00017973,2]
[393874842,1763059848511,-500.0,0.00017973,2]
[393874844,1763059848527,-151.0,0.0001799,2]
[393874847,1763059848542,-151.0,0.0001799,2]
[393874850,1763059848557,-151.0,0.0001799,2]
[393874852,1763059848571,-572.12407004,0.0001799,2]
[393874855,1763059848585,-572.12407004,0.0001799,2]
[393874857,1763059848600,-572.12407004,0.0001799,2]
[393874860,1763059848620,-151.0,0.00017996,2]
[393874863,1763059848636,-500.0,0.00017998,2]
[393874866,1763059848650,-500.0,0.00017998,2]
[393874868,1763059848665,-500.0,0.00017998,2]
[393874871,1763059848680,-500.0,0.00017998,2]
[393874873,1763059848695,-481.01736033,0.00017998,2]
[393874876,1763059848710,-26820.90590662,0.00017999,2]
[393875195,1763059875908,280.121,0.00016982,2]
[393875196,1763059888251,546.8033,0.00016982,2]
[393875197,1763059897035,6837.78274906,0.00016981,2]
[393875198,1763059897195,10000.01,0.00016981,2]
[393875199,1763059897219,10000.01,0.00016981,2]
[393875200,1763059897243,10000.01,0.00016981,2]
[393875201,1763059897267,10000.01,0.00016981,2]
[393875202,1763059897291,10000.01,0.00016981,2]
[393875203,1763059897315,10000.01,0.00016981,2]
[393875204,1763059897339,10000.01,0.00016981,2]
[393875205,1763059897364,10000.01,0.00016981,2]
[393875206,1763059897389,10000.01,0.00016981,2]
[393875207,1763059897422,105467.93734703,0.00016981,2]
[393875208,1763059898840,-364.96162129,0.00016981,2]
[393875209,1763059900747,-6356.15415017,0.00016981,2]
[393875210,1763059901103,-190.00046961,0.00016981,2]
[393875211,1763059901151,-10000.01,0.00016981,2]
[393875212,1763059901295,-10000.01,0.00016981,2]
[393875213,1763059901471,-10000.01,0.00016981,2]
[393875214,1763059901619,-10000.01,0.00016981,2]
[393875215,1763059904525,-10000.01,0.00016981,2]
[393875216,1763059904654,-10000.01,0.00016981,2]
[393875217,1763059904794,-10000.01,0.00016981,2]
[393875218,1763059904826,-174.00283522,0.00016981,2]
[393875219,1763059904875,-10000.01,0.00016981,2]
[393875220,1763059905023,-10000.01,0.00016981,2]
[393875221,1763059905458,-10000.01,0.00016981,2]
[393875222,1763059905617,-10000.01,0.00016981,2]
[393875223,1763059905896,-10000.01,0.00016981,2]
[393875224,1763059905942,-10000.01,0.00016981,2]
[393875225,1763059905967,-10000.01,0.00016981,2]
[393875226,1763059906081,-10000.01,0.00016981,2]
[393875227,1763059906210,-10000.01,0.00016981,2]
[393875228,1763059906325,-10000.01,0.00016981,2]
[393875229,1763059906445,-10000.01,0.00016981,2]
[393875230,1763059906587,-10000.01,0.00016981,2]
[393875231,1763059910602,-10000.01,0.00016981,2]
[393875232,1763059910650,-160.76297548,0.00016981,2]
[393875233,1763059910717,-10000.01,0.00016981,2]
[393875235,1763059910862,-448.09785214,0.00016981,2]
[393875237,1763059919006,1000.0,0.00016982,2]
[393875238,1763059925747,151.0,0.00040775,30]
[393875239,1763059926389,151.0,0.00040775,30]
[393875240,1763059927058,151.0,0.00040775,30]
[393875241,1763059927816,151.0,0.00040775,30]
[393875242,1763059928481,151.0,0.00040775,30]
[393875243,1763059929206,599.6094654,0.00040775,30]
[393875244,1763059929317,151.0,0.00040775,30]
[393875245,1763059930138,151.0,0.00040775,30]
[393875246,1763059930232,500.0,0.00040775,30]
[393875247,1763059930421,151.0,0.00040775,30]
[393875248,1763059930545,500.0,0.00040775,30]
[393875249,1763059930935,9000.01,0.00016982,2]
[393875250,1763059930958,10000.01,0.00016982,2]
[393875251,1763059930981,10000.01,0.00016982,2]
[393875252,1763059931003,4167.2289,0.00016982,2]
[393875253,1763059931035,500.0,0.00040775,30]
[393875254,1763059931076,151.0,0.00040775,30]
[393875255,1763059931187,500.0,0.00040775,30]
[393875256,1763059931544,500.0,0.00040775,30]
[393875257,1763059931620,151.0,0.00040775,30]
[393875258,1763059931873,500.0,0.00040775,30]
[393875259,1763059932151,500.0,0.00040775,30]
[393875260,1763059932448,151.0,0.00040775,30]
[393875261,1763059932512,500.0,0.00040775,30]
[393875262,1763059932768,500.0,0.00040775,30]
[393875263,1763059933059,500.0,0.00040775,30]
[393875264,1763059933654,500.0,0.00040775,30]
[393875265,1763059934342,500.0,0.00040775,30]
[393875274,1763060003705,255.63,0.00016999,2]
[393875309,1763060158912,470.36219901,0.0001694,2]
[393875310,1763060173080,4190.79625125,0.0001694,2]
[393875311,1763060190767,430.09,8.363e-05,2]
[393875312,1763060191011,430.09,8.803e-05,2]
[393875313,1763060191237,55.81264974,9.243e-05,2]
[393875314,1763060191261,374.27735026,9.243e-05,2]
[393875315,1763060191477,430.09,9.683e-05,2]
[393875316,1763060191740,430.09,0.00010123,2]
[393875317,1763060192471,430.09,0.00010563,2]
[393875318,1763060192697,430.09,0.00011004,2]
[393875319,1763060192823,430.09,0.00011444,2]
[393875320,1763060192939,430.09,0.00011884,2]
[393875321,1763060193270,430.09,0.00012324,2]
[393875322,1763060193880,430.09,0.00012764,2]
[393875323,1763060194102,430.09,0.00013204,2]
[393875324,1763060194204,430.09,0.00013644,2]
[393875325,1763060196962,430.09,0.00014085,2]
[393875326,1763060197187,430.09,0.00014525,2]
[393875327,1763060197466,430.09,0.00014965,2]
[393875328,1763060197678,430.09,0.00015405,2]
[393875329,1763060197957,430.09,0.00015845,2]
[393875330,1763060198203,430.09,0.00016285,2]
[393875331,1763060198473,430.09,0.00016725,2]
[393875342,1763060222441,178.45,0.00013272,2]
[393875355,1763060253948,2135.75264974,0.0001694,2]
[393875356,1763060253975,4197.20714726,0.0001694,2]
[393875358,1763060295957,1852.42,0.00016667,2]
[393875359,1763060312701,150.0,0.00016651,2]
[393875360,1763060312918,150.0,0.00016651,120]
[393875367,1763060367285,488.04,0.00013699,2]
[393875406,1763060394385,469.03065546,0.0001694,2]
[393875432,1763060435331,-170.6015048,0.00017,2]
[393875470,1763060551614,999.0,0.00016525,3]
[393875471,1763060556938,219.46,0.00016525,2]
[393875472,1763060569889,6162.83,0.00016507,2]
[393875473,1763060581974,3837.18,0.00016537,2]
[393875474,1763060581996,10000.01,0.00016537,2]
[393875475,1763060582017,10000.01,0.00016537,2]
[393875476,1763060582038,10000.01,0.00016537,2]
[393875477,1763060582059,10000.01,0.00016537,2]
[393875478,1763060582081,10000.01,0.00016537,2]
[393875479,1763060582103,10000.01,0.00016537,2]
[393875480,1763060582124,10000.01,0.00016537,2]
[393875481,1763060582149,1830.48,0.00016537,2]
[393875482,1763060595140,3771.71662617,0.0001694,2]
[393875485,1763060640210,4397.81337383,0.0001694,2]
[393875486,1763060640232,1301.85044347,0.0001694,2]
[393875488,1763060674269,411.56692416,0.0001694,2]
[393875490,1763060730624,422.12758995,0.0001694,2]
[393875491,1763060764294,154.45764356,0.000162,2]
[393875492,1763060776661,9423.42476649,0.00016921,2]
[393875493,1763060776683,983.73783351,0.00016921,2]
[393875495,1763060841204,224.9722588,0.000169,2]
[393875498,1763060897008,8791.29990769,0.00016338,2]
[393875499,1763060897032,8019.35009231,0.00016338,2]
[393875578,1763060956867,360.12105864,0.0001694,2]
[393875791,1763060972850,500.0,0.00016508,2]
[393875795,1763061017445,3394.54496349,0.0001694,2]
[393875796,1763061026616,5129.69743557,0.0001694,2]
[393875804,1763061032247,-79.3984952,0.00017,2]
[393875805,1763061032256,-151.0,0.00017,2]
[393875806,1763061032265,-195.0,0.00017,2]
[393875807,1763061032275,-250.0,0.00017,2]
[393875809,1763061032284,-403.8,0.00017005,2]
[393875810,1763061032293,-195.0,0.00017005,2]
[393875811,1763061032303,-6.60150481,0.00017009,2]
[393875812,1763061032351,-1193.39849519,0.00017009,2]
[393875813,1763061032361,-955.0,0.0001701,2]
[393875814,1763061032371,-300.0,0.0001701,2]
[393875815,1763061032380,-300.0,0.0001701,2]
[393875816,1763061032390,-151.0,0.00017011,2]
[393875817,1763061032400,-151.0,0.00017011,2]
[393875818,1763061032410,-151.0,0.00017011,2]
[393875819,1763061032419,-151.0,0.00017011,2]
[393875820,1763061032429,-151.0,0.00017011,2]
[393875821,1763061032439,-151.0,0.00017011,2]
[393875822,1763061032448,-151.0,0.00017011,2]
[393875823,1763061032458,-151.0,0.00017011,2]
[393875824,1763061032469,-151.0,0.00017011,2]
[393875825,1763061032479,-151.0,0.00017011,2]
[393875826,1763061032492,-151.0,0.00017011,2]
[393875827,1763061032502,-151.0,0.00017011,2]
[393875828,1763061032512,-151.0,0.00017011,2]
[393875829,1763061032522,-151.0,0.00017011,2]
[393875830,1763061032533,-81.68036863,0.00017011,2]
[393875839,1763061032918,-69.31963137,0.00017011,2]
[393875840,1763061032928,-151.0,0.00017011,2]
[393875841,1763061032937,-151.0,0.00017011,2]
[393875842,1763061032947,-151.0,0.00017011,2]
[393875843,1763061032956,-151.0,0.00017011,2]
[393875844,1763061032966,-229.89398899,0.00017011,2]
[393875845,1763061032976,-151.0,0.00017011,2]
[393875846,1763061032985,-128.64255944,0.00017011,2]
[393875847,1763061033012,-22.35744056,0.00017011,2]
[393875848,1763061033022,-151.0,0.00017011,2]
[393875849,1763061033031,-151.0,0.00017011,2]
[393875850,1763061033042,-151.0,0.00017011,2]
[393875851,1763061033051,-151.0,0.00017011,2]
[393875852,1763061033061,-37.41431743,0.00017011,2]
[393875853,1763061033081,-113.58568257,0.00017011,2]
[393875854,1763061033090,-151.0,0.00017011,2]
[393875855,1763061033099,-587.88,0.00017011,2]
[393875856,1763061033108,-1000.0,0.00017019,2]
[393875857,1763061033117,-5895.50270909,0.00017019,2]
[393875858,1763061033132,-8607.92033933,0.00017019,2]
[393875859,1763061033141,-500.0,0.0001702,2]
[393875860,1763061033151,-500.0,0.0001702,2]
[393875861,1763061033160,-500.0,0.0001702,2]
[393875862,1763061033169,-500.0,0.0001702,2]
[393875863,1763061033178,-500.0,0.0001702,2]
[393875864,1763061033188,-500.0,0.0001702,2]
[393875865,1763061033197,-500.0,0.0001702,2]
[393875866,1763061033207,-500.0,0.0001702,2]
[393875867,1763061033217,-500.0,0.0001702,2]
[393875868,1763061033226,-500.0,0.0001702,2]
[393875869,1763061033236,-196.29872544,0.0001702,2]
[393875870,1763061033245,-398.85235142,0.0001702,2]
[393875871,1763061033255,-500.0,0.0001702,2]
[393875872,1763061033265,-500.0,0.0001702,2]